bitfinex/quotes_SOLUSD_20241101
["timestamp","ask_amount","ask_price","bid_price","bid_amount"]
[1730494252174,14.85557809,166.3,166.25,29.89487809]
[1730494252477,6.0132,166.3,166.25,29.89487809]
[1730494252771,20.0,166.3,166.25,29.89487809]
[1730494252969,24.49367809,166.34,166.28,8.84237809]
[1730494253695,8.84237809,166.32,166.26,8.84237809]
[1730494253993,8.84237809,166.32,166.27,21.05]
[1730494254171,8.84237809,166.31,166.27,21.05]
[1730494256298,14.85527809,166.31,166.27,21.05]
[1730494257302,14.85527809,166.31,166.27,15.0357]
[1730494258603,14.85527809,166.31,166.26,8.84237809]
[1730494259598,14.85527809,166.31,166.27,6.0143]
[1730494262503,6.0129,166.31,166.27,8.84237809]
[1730494263811,26.0125,166.32,166.27,14.85647809]
[1730494264298,26.0125,166.32,166.29,8.84237809]
[1730494264677,26.0125,166.32,166.28,8.84237809]
[1730494265512,26.0125,166.32,166.27,8.84237809]
[1730494265713,34.85487809,166.32,166.27,8.84237809]
[1730494268610,34.85487809,166.32,166.27,14.85637809]
[1730494270816,8.84237809,166.3,166.26,15.036]
[1730494271116,8.84237809,166.3,166.26,21.0506]
[1730494272290,6.0132,166.3,166.26,21.0506]
[1730494273723,14.85557809,166.3,166.26,15.036]
[1730494274092,14.85557809,166.3,166.26,21.0506]
[1730494275118,14.85517809,166.31,166.26,21.0506]
[1730494278308,14.85567809,166.3,166.26,21.0506]
[1730494278510,8.84237809,166.28,166.23,29.89687809]
[1730494278994,8.84237809,166.28,166.23,21.0545]
[1730494279200,8.84237809,166.27,166.23,15.0388]
[1730494279514,8.84237809,166.27,166.23,21.0545]
[1730494280017,8.84237809,166.28,166.23,21.0545]
[1730494280411,14.85647809,166.28,166.23,21.0545]
[1730494283233,6.0141,166.28,166.23,8.84237809]
[1730494283719,6.0141,166.28,166.24,8.84237809]
[1730494285031,14.85647809,166.28,166.23,14.85777809]
[1730494286031,6.0141,166.28,166.22,23.88187809]
[1730494286335,8.84237809,166.23,166.17,14.86007809]
[1730494286508,8.84237809,166.22,166.17,17.90113991]
[1730494286709,8.84237809,166.23,166.18,8.84237809]
[1730494287225,8.84237809,166.23,166.17,21.0625]
[1730494287226,8.84237809,166.22,166.17,29.90487809]
[1730494288438,14.85827809,166.23,166.18,8.84237809]
[1730494289349,8.84237809,166.24,166.19,6.0172]
[1730494290433,6.1793,166.26,166.19,6.0172]
[1730494290434,14.85707809,166.26,166.2,8.84237809]
[1730494290614,20.0,166.25,166.21,8.84237809]
[1730494290813,28.84237809,166.25,166.2,8.84237809]
[1730494291846,28.84237809,166.25,166.21,6.0164]
[1730494292017,8.84237809,166.24,166.21,6.0164]
[1730494294214,8.84237809,166.23,166.19,15.043]
[1730494294438,8.84237809,166.23,166.19,21.0602]
[1730494295338,8.84237809,166.22,166.16,8.84237809]
[1730494295516,8.84237809,166.2,166.16,21.0639]
[1730494296622,8.84237809,166.18,166.15,0.6089798]
[1730494296866,8.84237809,166.19,166.15,6.1275798]
[1730494299016,8.84237809,166.18,166.15,6.1275798]
[1730494300311,41.7938,166.17,166.15,0.1089798]
[1730494300513,43.776884,166.15,166.02,8.84237809]
[1730494300743,8.84237809,166.08,166.02,8.84237809]
[1730494300932,8.84237809,166.08,166.02,11.87680697]
[1730494301140,8.84237809,166.09,166.03,8.84237809]
[1730494301536,8.84237809,166.08,166.03,21.0805]
[1730494301933,8.84237809,166.08,166.03,15.0575]
[1730494302441,8.84237809,166.09,166.03,23.89987809]
[1730494303429,14.86317809,166.09,166.03,29.92287809]
[1730494304855,24.84137809,166.1,166.04,8.84237809]
[1730494305030,24.84137809,166.1,166.05,8.84237809]
[1730494306131,24.84137809,166.1,166.04,8.84237809]
[1730494306529,8.84237809,166.09,166.04,8.84237809]
[1730494308539,8.84237809,166.07,166.04,6.0223]
[1730494308848,8.84237809,166.09,166.04,14.86467809]
[1730494310255,8.84237809,166.08,166.03,23.89987809]
[1730494310549,24.84137809,166.1,166.04,8.84237809]
[1730494310748,15.999,166.1,166.05,8.84237809]
[1730494311053,24.84137809,166.1,166.05,8.84237809]
[1730494311733,15.999,166.1,166.06,8.84237809]
[1730494311933,15.999,166.1,166.05,8.84237809]
[1730494312334,15.999,166.1,166.06,6.0219]
[1730494312847,24.84137809,166.1,166.06,6.0219]
[1730494313351,24.84137809,166.1,166.06,21.0766]
[1730494313655,30.86197809,166.1,166.06,21.0766]
[1730494313960,8.84237809,166.09,166.06,21.0766]
[1730494314556,8.84237809,166.09,166.06,15.0547]
[1730494315148,8.84237809,166.08,166.04,6.0225]
[1730494316252,24.84137809,166.1,166.05,8.84237809]
[1730494316444,20.0,166.09,166.05,8.84237809]
[1730494316645,24.84137809,166.1,166.06,6.0219]
[1730494316847,30.86197809,166.1,166.05,14.86447809]
[1730494317051,30.86197809,166.1,166.05,6.0221]
[1730494317357,8.84237809,166.09,166.05,6.0221]
[1730494319047,8.84237809,166.08,166.04,21.0792]
[1730494319253,14.86317809,166.09,166.04,21.0792]
[1730494319446,14.86317809,166.09,166.04,14.86497809]
[1730494319447,8.84237809,166.09,166.04,14.86497809]
[1730494319757,28.4655,166.1,166.04,14.86497809]
[1730494319758,37.30787809,166.1,166.04,14.86497809]
[1730494320654,37.30787809,166.1,166.04,8.84237809]
[1730494321653,24.84137809,166.1,166.04,8.84237809]
[1730494321866,24.84137809,166.1,166.05,8.84237809]
[1730494322260,15.999,166.1,166.05,8.84237809]
[1730494323342,24.84137809,166.1,166.05,8.84237809]
[1730494323544,24.84137809,166.1,166.06,6.0219]
[1730494325260,24.84137809,166.1,166.05,15.055]
[1730494325439,8.84237809,166.06,166.0,8.84237809]
[1730494325641,8.84237809,166.05,165.99,9.45135789]
[1730494325836,8.84237809,166.01,165.99,0.6089798]
[1730494326155,8.84237809,166.05,166.0,8.84237809]
[1730494326335,8.84237809,166.06,166.0,8.84237809]
[1730494326961,8.84237809,166.05,166.0,8.84237809]
[1730494327153,8.84237809,166.05,165.99,30.53655789]
[1730494328464,8.84237809,166.04,165.99,30.53655789]
[1730494330361,8.84237809,166.0,165.99,15.6700798]
[1730494330558,8.84237809,166.01,165.99,21.6944798]
[1730494330760,8.84237809,166.02,165.99,21.6944798]
[1730494331342,8.84237809,166.03,165.99,21.6944798]
[1730494332964,8.84237809,166.04,165.99,21.6944798]
[1730494333351,35.36951236,166.08,165.99,21.6944798]
[1730494333352,8.84237809,166.03,165.99,21.6944798]
[1730494334147,8.84237809,166.05,166.0,8.84237809]
[1730494334346,8.84237809,166.05,165.99,21.6944798]
[1730494334347,8.84237809,166.05,165.99,30.53685789]
[1730494334749,8.84237809,166.04,165.99,21.6944798]
[1730494335157,8.84237809,166.03,165.99,21.6944798]
[1730494335462,8.84237809,166.01,165.99,21.6944798]
[1730494335854,8.84237809,166.0,165.99,0.6089798]
[1730494340969,8.84237809,166.03,165.99,15.6700798]
[1730494341171,8.84237809,166.03,165.99,21.6944798]
[1730494341472,15.0516,166.1,165.99,15.6700798]
[1730494341473,8.84237809,166.0,165.99,15.6700798]
[1730494341670,8.84237809,166.0,165.99,0.6089798]
[1730494343453,14.86637809,166.0,165.99,0.6089798]
[1730494345776,50.23589045,166.0,165.99,0.6089798]
[1730494355286,65.29609045,166.0,165.9,21.0966]
[1730494355469,8.84237809,165.93,165.9,21.0966]
[1730494356261,8.84237809,165.91,165.85,6.2241]
[1730494356463,8.84237809,165.9,165.86,21.1009]
[1730494357392,8.84237809,165.89,165.86,21.1009]
[1730494358158,8.84237809,165.9,165.86,21.1009]
[1730494363992,8.84237809,165.89,165.86,21.1009]
[1730494364990,8.84237809,165.88,165.86,15.0721]
[1730494365167,8.84237809,165.89,165.86,15.0721]
[1730494367987,8.84237809,165.9,165.86,15.0721]
[1730494371295,8.84237809,165.93,165.87,8.84237809]
[1730494371480,6.0251,165.97,165.86,30.55577809]
[1730494371481,8.84237809,165.91,165.86,30.55577809]
[1730494371875,8.84237809,165.91,165.86,21.7134]
[1730494372069,8.84237809,165.9,165.86,15.0721]
[1730494372266,8.84237809,165.89,165.86,21.1012]
[1730494372472,8.84237809,165.9,165.86,21.1012]
[1730494372987,8.84237809,165.89,165.86,21.1012]
[1730494373292,8.84237809,165.89,165.86,15.0721]
[1730494373996,8.84237809,165.9,165.86,15.0721]
[1730494375292,8.94389671,165.9,165.86,15.0721]
[1730494375490,8.94389671,165.9,165.86,13.5721]
[1730494376683,8.94389671,165.89,165.86,13.5721]
[1730494376883,8.94389671,165.89,165.85,30.1477]
[1730494379680,8.94389671,165.89,165.85,25.1477]
[1730494380197,8.94389671,165.9,165.85,25.1477]
[1730494380388,8.94389671,165.89,165.84,15.0747]
[1730494381489,8.94389671,165.89,165.84,30.04849671]
[1730494382088,8.94389671,165.9,165.85,8.94389671]
[1730494383219,8.94389671,165.9,165.86,6.0291]
[1730494385575,8.94321488,165.9,165.85,8.94321488]
[1730494386076,14.97061488,165.91,165.85,8.94321488]
[1730494386479,8.94321488,165.91,165.85,8.94321488]
[1730494386694,8.94321488,165.91,165.86,8.94321488]
[1730494388786,8.94321488,165.91,165.87,6.0288]
[1730494390187,8.94321488,165.91,165.87,21.1008]
[1730494393205,8.94321488,165.91,165.87,15.072]
[1730494401315,14.97021488,165.92,165.87,15.072]
[1730494401493,8.94321488,165.94,165.88,8.94321488]
[1730494402108,8.94321488,165.93,165.89,6.028]
[1730494403127,14.96991488,165.93,165.89,6.028]
[1730494403310,8.94321488,165.92,165.89,6.028]
[1730494403506,8.94321488,165.91,165.88,6.0284]
[1730494404594,8.94321488,165.9,165.87,15.072]
[1730494405019,8.94321488,165.89,165.83,39.09451488]
[1730494405211,8.94321488,165.88,165.84,21.1043]
[1730494405514,35.77285952,165.92,165.84,21.1043]
[1730494405515,8.94321488,165.86,165.84,15.0744]
[1730494405694,8.94321488,165.86,165.84,3.05046715]
[1730494405894,15.2643,165.91,165.85,3.05046715]
[1730494406119,15.2643,165.91,165.82,6.6392798]
[1730494406316,8.94321488,165.85,165.82,6.6392798]
[1730494406507,8.94321488,165.85,165.83,3.05063486]
[1730494406812,8.94321488,165.85,165.84,3.05063486]
[1730494408614,8.94321488,165.85,165.84,3.05069271]
[1730494412319,14.97281488,165.85,165.82,0.6089798]
[1730494412509,8.94321488,165.83,165.82,0.6089798]
[1730494413324,8.94321488,165.83,165.82,3.6599647]
[1730494414717,8.94321488,165.83,165.82,9.6905647]
[1730494416227,8.94321488,165.84,165.82,3.6599647]
[1730494416403,21.0973,165.9,165.83,3.0509849]
[1730494416716,8.94321488,165.84,165.82,0.6089798]
[1730494416935,8.94321488,165.83,165.82,0.6089798]
[1730494417097,8.94321488,165.83,165.82,3.66029778]
[1730494420014,8.94321488,165.83,165.82,6.71232323]
[1730494420325,8.94321488,165.83,165.82,3.66100525]
[1730494422501,8.94321488,165.83,165.82,0.6089798]
[1730494425830,8.94321488,165.83,165.82,3.6633071]
[1730494433737,8.94321488,165.83,165.82,0.6089798]
[1730494433914,8.94321488,165.83,165.82,3.66239653]
[1730494437036,8.94321488,165.83,165.82,0.6089798]
[1730494437239,8.94321488,165.83,165.82,3.66237343]
[1730494440637,8.94321488,165.83,165.82,0.6089798]
[1730494440933,8.94321488,165.83,165.82,3.6626072]
[1730494443940,8.94321488,165.83,165.82,3.6627569]
[1730494444140,8.94321488,165.83,165.82,6.71654127]
[1730494444644,8.94321488,165.83,165.82,6.71662838]
[1730494445337,8.94321488,165.83,165.82,3.66284401]
[1730494447433,8.94321488,165.83,165.82,0.6089798]
[1730494447634,8.94321488,165.83,165.82,3.66327905]
[1730494448440,8.94321488,165.84,165.82,9.69387905]
[1730494448741,8.94321488,165.84,165.83,3.05429925]
[1730494455037,8.94321488,165.84,165.82,21.7160798]
[1730494455253,8.94321488,165.84,165.83,3.05681036]
[1730494455455,8.94321488,165.84,165.82,15.6854798]
[1730494455627,6.0296,165.85,165.83,3.05702513]
[1730494455831,8.94321488,165.84,165.82,15.6854798]
[1730494456052,8.94321488,165.83,165.82,0.6089798]
[1730494458449,14.97341488,165.83,165.82,0.6089798]
[1730494462732,8.94321488,165.83,165.82,0.6089798]
[1730494463547,14.97341488,165.83,165.82,0.6089798]
[1730494464059,8.94321488,165.83,165.82,0.6089798]
[1730494480562,14.97341488,165.83,165.82,0.6089798]
[1730494494497,8.94321488,165.83,165.82,0.6089798]
[1730494501795,8.94321488,165.84,165.82,6.6395798]
[1730494502088,8.94321488,165.86,165.82,21.7160798]
[1730494502286,8.94321488,165.85,165.82,21.7160798]
[1730494502488,8.94321488,165.86,165.82,21.7160798]
[1730494503271,8.94321488,165.85,165.82,21.7160798]
[1730494506202,8.94321488,165.83,165.82,0.6089798]
[1730494509487,8.94321488,165.84,165.82,6.6395798]
[1730494509886,8.94321488,165.85,165.82,6.6395798]
[1730494510197,8.94321488,165.85,165.82,21.7160798]
[1730494510376,8.94321488,165.87,165.82,30.65929468]
[1730494510692,8.94321488,165.89,165.83,8.94321488]
[1730494510896,8.94321488,165.89,165.84,8.94321488]
[1730494511292,8.94321488,165.89,165.82,21.7160798]
[1730494511293,8.94321488,165.91,165.86,8.94321488]
[1730494512501,8.94321488,165.91,165.87,21.1008]
[1730494514000,8.94321488,165.9,165.85,8.94321488]
[1730494515581,8.94321488,165.91,165.86,8.94321488]
[1730494515782,8.94321488,165.91,165.87,21.1008]
[1730494516173,8.94321488,165.92,165.87,21.1008]
[1730494517098,8.94321488,165.9,165.87,21.1008]
[1730494517293,8.94321488,165.88,165.83,22.0634]
[1730494517506,8.94321488,165.87,165.84,21.1042]
[1730494518585,8.94321488,165.87,165.84,15.0743]
[1730494519292,8.94321488,165.86,165.84,15.0743]
[1730494519689,8.94321488,165.85,165.82,12.88684032]
[1730494519885,8.94321488,165.83,165.82,12.88684032]
[1730494527505,8.94321488,165.83,165.82,0.6089798]
[1730494552817,8.94321488,165.84,165.82,6.6395798]
[1730494553010,6.0292,165.86,165.82,6.6395798]
[1730494553011,8.94321488,165.83,165.82,0.6089798]
[1730494554905,14.97341488,165.83,165.82,0.6089798]
[1730494556425,34.97341488,165.83,165.82,0.6089798]
[1730494556628,64.99159888,165.83,165.82,0.6089798]
[1730494557201,64.99159888,165.83,165.74,6.30032476]
[1730494557202,20.0,165.82,165.74,6.30032476]
[1730494557426,8.94321488,165.76,165.74,6.30032476]
[1730494558017,8.94321488,165.75,165.74,6.30032476]
[1730494558325,8.94321488,165.75,165.74,5.30032476]
[1730494559025,8.94321488,165.75,165.74,11.33382476]
[1730494560139,8.94321488,165.76,165.74,5.30032476]
[1730494560714,8.94321488,165.75,165.74,5.30032476]
[1730494561227,8.94321488,165.76,165.74,5.30032476]
[1730494561541,8.94321488,165.76,165.73,21.1177]
[1730494562730,8.94321488,165.77,165.73,21.1177]
[1730494566321,8.94321488,165.77,165.71,8.94321488]
[1730494566521,8.94321488,165.76,165.71,8.94321488]
[1730494566825,8.94321488,165.75,165.7,11.99159026]
[1730494567632,8.94321488,165.75,165.71,21.1211]
[1730494567834,8.94321488,165.76,165.71,21.1211]
[1730494568019,5.59400888,165.75,165.71,21.1211]
[1730494568220,6.0323,165.78,165.71,21.1211]
[1730494568533,8.94321488,165.75,165.71,21.1211]
[1730494568926,8.94321488,165.75,165.71,15.0865]
[1730494569129,8.94321488,165.75,165.71,18.1341017]
[1730494569442,8.94321488,165.75,165.71,15.0865]
[1730494569628,8.94321488,165.75,165.71,18.13391721]
[1730494570725,8.94321488,165.74,165.71,18.13391721]
[1730494570929,8.94321488,165.74,165.71,21.1211]
[1730494571939,8.94321488,165.74,165.71,15.0865]
[1730494574042,8.94321488,165.74,165.71,21.1211]
[1730494575242,8.94321488,165.75,165.71,15.0865]
[1730494575743,8.94321488,165.78,165.73,8.94321488]
[1730494576332,8.94321488,165.78,165.72,8.94321488]
[1730494576739,8.94321488,165.78,165.72,11.98836864]
[1730494578351,8.94321488,165.78,165.73,21.1186]
[1730494580446,8.94321488,165.77,165.73,21.1186]
[1730494581448,8.94321488,165.78,165.73,21.1186]
[1730494581844,8.94321488,165.77,165.73,21.1186]
[1730494587431,22.2344,165.79,165.73,21.1186]
[1730494587432,8.94321488,165.79,165.74,8.94321488]
[1730494587631,24.28201488,165.83,165.78,8.94321488]
[1730494587832,8.94321488,165.84,165.79,8.94321488]
[1730494588238,8.94321488,165.84,165.75,9.10970935]
[1730494588549,8.94321488,165.83,165.78,8.94321488]
[1730494589051,8.94321488,165.83,165.79,6.0317]
[1730494589445,8.94321488,165.83,165.79,21.111]
[1730494589956,14.97311488,165.84,165.79,30.05421488]
[1730494590348,8.94321488,165.83,165.79,21.111]
[1730494593154,8.94321488,165.84,165.79,30.05421488]
[1730494597944,8.94321488,165.85,165.8,8.94321488]
[1730494598660,8.94321488,165.85,165.79,30.05421488]
[1730494598862,8.94321488,165.84,165.79,30.05421488]
[1730494599565,8.94321488,165.86,165.8,8.94321488]
[1730494600060,8.94321488,165.85,165.81,6.0309]
[1730494600359,8.94321488,165.85,165.81,21.1083]
[1730494600964,8.94321488,165.84,165.78,8.94321488]
[1730494601165,8.94321488,165.83,165.78,24.02281488]
[1730494601743,8.94321488,165.82,165.78,15.0796]
[1730494601943,8.94321488,165.81,165.78,15.0796]
[1730494603067,14.97371488,165.83,165.78,15.0796]
[1730494603365,14.97371488,165.83,165.78,21.1116]
[1730494604947,14.97371488,165.83,165.78,24.02281488]
[1730494607160,8.94321488,165.84,165.78,30.05481488]
[1730494608669,6.0302,165.83,165.78,30.05481488]
[1730494609866,8.94321488,165.83,165.78,30.05481488]
[1730494611272,8.94321488,165.83,165.78,21.1116]
[1730494612566,8.94321488,165.83,165.78,30.05481488]
[1730494614067,8.94321488,165.83,165.78,15.0796]
[1730494614248,8.94321488,165.82,165.78,15.0796]
[1730494614451,8.94321488,165.79,165.73,8.94321488]
[1730494614667,8.94321488,165.76,165.72,21.1193]
[1730494614874,15.5145,165.81,165.72,21.1193]
[1730494615053,20.0,165.8,165.72,21.1193]
[1730494615365,8.94321488,165.75,165.72,21.1193]
[1730494615671,8.94321488,165.74,165.72,21.1193]
[1730494617061,8.94321488,165.74,165.7,30.175]
[1730494617268,8.94321488,165.73,165.7,30.175]
[1730494618670,8.94321488,165.74,165.7,30.175]
[1730494621349,8.94321488,165.75,165.7,30.175]
[1730494621550,8.94321488,165.75,165.7,51.2975]
[1730494622251,8.94321488,165.74,165.7,51.2975]
[1730494622651,8.94321488,165.74,165.7,30.175]
[1730494624370,8.94321488,165.73,165.7,30.175]
[1730494624572,8.94321488,165.73,165.68,8.94321488]
[1730494624764,8.94321488,165.73,165.69,21.1237]
[1730494625471,8.94321488,165.74,165.69,21.1237]
[1730494629068,14.97641488,165.75,165.69,24.03161488]
[1730494629678,8.94321488,165.74,165.69,15.0884]
[1730494630368,8.94321488,165.74,165.69,21.1237]
[1730494633177,8.94321488,165.75,165.7,8.94321488]
[1730494633681,8.94321488,165.75,165.69,24.03161488]
[1730494634651,8.94321488,165.75,165.7,8.94321488]
[1730494636360,8.94321488,165.75,165.69,24.03161488]
[1730494637255,8.94321488,165.75,165.69,30.06691488]
[1730494638388,8.94321488,165.74,165.69,15.0884]
[1730494639757,8.94321488,165.77,165.72,8.94321488]
[1730494639960,8.94321488,165.77,165.71,8.94321488]
[1730494640270,8.94321488,165.76,165.71,8.94321488]
[1730494640779,8.94321488,165.76,165.72,21.1198]
[1730494641685,8.94321488,165.75,165.72,21.1198]
[1730494643583,8.94321488,165.75,165.72,21.1198]
[1730494644162,8.94321488,165.78,165.72,15.0856]
[1730494644479,8.94321488,165.78,165.73,8.94321488]
[1730494644658,35.77285952,165.84,165.72,15.0856]
[1730494644659,21.261,165.87,165.72,15.0856]
[1730494644858,21.261,165.87,165.75,23.776884]
[1730494645071,27.2898,165.87,165.76,0.12549]
[1730494645274,8.94321488,165.85,165.79,8.94321488]
[1730494645487,27.2898,165.87,165.75,23.776884]
[1730494645488,8.94321488,165.83,165.75,23.776884]
[1730494645660,8.94321488,165.83,165.77,8.94321488]
[1730494645860,8.94321488,165.83,165.78,8.94321488]
[1730494646274,8.94321488,165.84,165.79,6.0317]
[1730494646465,8.94321488,165.85,165.8,8.94321488]
[1730494646683,14.97231488,165.86,165.8,8.94321488]
[1730494646892,8.94321488,165.86,165.8,8.94321488]
[1730494647591,30.03621488,165.87,165.81,8.94321488]
[1730494647887,24.00741488,165.87,165.82,8.94321488]
[1730494648181,15.0642,165.87,165.82,8.94321488]
[1730494648392,15.0642,165.87,165.83,14.97341488]
[1730494648561,8.94321488,165.9,165.84,8.94321488]
[1730494648959,15.7229,165.91,165.88,8.94321488]
[1730494649175,30.38671488,165.95,165.89,8.94321488]
[1730494649359,24.6821,165.99,165.92,8.94321488]
[1730494649563,18.6576,165.99,165.94,8.94321488]
[1730494649762,3.24,165.99,165.95,8.94321488]
[1730494650169,3.24,165.99,165.96,8.94321488]
[1730494650375,3.24,165.99,165.97,8.94321488]
[1730494650687,12.18321488,165.99,165.95,15.0638]
[1730494650883,3.24,165.99,165.95,24.00701488]
[1730494651088,3.24,165.99,165.96,8.94321488]
[1730494651390,8.94321488,166.01,165.96,8.94321488]
[1730494651564,8.94321488,166.01,165.95,30.03291488]
[1730494651984,8.94321488,166.0,165.95,30.03291488]
[1730494652885,8.94321488,166.01,165.95,30.03291488]
[1730494653087,14.96651488,166.02,165.96,8.94321488]
[1730494653393,14.96651488,166.02,165.97,8.94321488]
[1730494653564,8.94321488,166.02,165.97,8.94321488]
[1730494653771,8.94321488,166.01,165.95,8.94321488]
[1730494654160,8.94321488,166.0,165.95,8.94321488]
[1730494655496,8.94321488,166.01,165.95,14.96901488]
[1730494656595,6.0233,166.02,165.93,15.0657]
[1730494656596,8.94321488,165.98,165.93,24.00891488]
[1730494656777,8.94321488,165.97,165.93,15.0657]
[1730494656977,8.94321488,165.97,165.92,8.94321488]
[1730494657379,8.94321488,165.97,165.91,14.97021488]
[1730494657588,14.96851488,165.97,165.91,14.97021488]
[1730494658089,8.94321488,165.94,165.89,24.01271488]
[1730494658291,8.94321488,165.94,165.89,15.0695]
[1730494658791,15.1704,165.96,165.87,6.3175]
[1730494658792,8.94321488,165.93,165.87,8.94321488]
[1730494658983,8.94321488,165.92,165.87,8.94321488]
[1730494659377,8.94321488,165.94,165.89,8.94321488]
[1730494659780,14.96941488,165.95,165.9,8.94321488]
[1730494660179,14.96941488,165.95,165.89,30.04111488]
[1730494660997,8.94321488,165.92,165.86,8.94321488]
[1730494661204,8.94321488,165.91,165.86,15.0728]
[1730494661791,8.94321488,165.91,165.86,21.1019]
[1730494662196,8.94321488,165.92,165.86,30.04511488]
[1730494663584,8.94321488,165.93,165.87,8.94321488]
[1730494663982,8.94321488,165.94,165.88,8.94321488]
[1730494664204,8.94321488,165.93,165.87,8.94321488]
[1730494664597,8.94321488,165.94,165.88,8.94321488]
[1730494665302,15.1704,165.96,165.91,8.94321488]
[1730494665478,15.1704,165.96,165.9,8.94321488]
[1730494665479,24.11361488,165.96,165.9,8.94321488]
[1730494665803,8.94321488,165.95,165.89,30.04141488]
[1730494666005,8.94321488,165.94,165.89,21.0982]
[1730494666792,21.196,165.96,165.89,21.0982]
[1730494666793,8.94321488,165.95,165.89,21.0982]
[1730494667004,8.94321488,165.95,165.89,30.04141488]
[1730494667175,24.11361488,165.96,165.89,30.04141488]
[1730494667375,24.11361488,165.96,165.9,8.94321488]
[1730494667777,8.94321488,165.96,165.9,8.94321488]
[1730494668280,8.94321488,165.97,165.91,8.94321488]
[1730494668698,8.94321488,165.98,165.9,23.902374]
[1730494669001,8.94321488,165.96,165.9,32.84558888]
[1730494670186,8.94321488,165.97,165.91,21.0957]
[1730494670388,8.94321488,165.99,165.93,8.94321488]
[1730494671211,8.94321488,165.98,165.93,8.94321488]
[1730494671699,8.94321488,165.98,165.94,6.0262]
[1730494671909,8.94321488,165.97,165.94,6.0262]
[1730494672597,8.94321488,165.97,165.92,21.0945]
[1730494674415,8.94321488,165.95,165.92,21.0945]
[1730494674626,8.94321488,165.95,165.92,15.0675]
[1730494674814,8.94321488,165.96,165.92,21.0945]
[1730494675598,8.94321488,165.97,165.92,21.0945]
[1730494677326,8.94321488,165.96,165.92,21.0945]
[1730494677795,8.94321488,165.94,165.92,15.0675]
[1730494679200,8.94321488,165.95,165.92,15.0675]
[1730494681013,8.94321488,165.94,165.92,15.0675]
[1730494681817,8.94321488,165.95,165.92,15.0675]
[1730494682813,8.94321488,165.96,165.92,15.0675]
[1730494683418,6.0244,165.99,165.92,24.01071488]
[1730494683419,8.94321488,165.98,165.92,24.01071488]
[1730494684012,8.94321488,165.98,165.92,30.03771488]
[1730494684830,8.94321488,165.97,165.92,30.03771488]
[1730494684997,8.94321488,165.96,165.92,21.0945]
[1730494685700,8.94321488,165.97,165.92,30.03771488]
[1730494686300,8.94321488,165.97,165.91,8.94321488]
[1730494688225,15.602,166.0,165.96,8.94321488]
[1730494688406,15.602,166.0,165.92,35.77285952]
[1730494688407,8.94321488,166.03,165.97,30.03121488]
[1730494688604,8.94321488,166.01,165.97,21.088]
[1730494689005,14.96651488,166.02,165.97,21.088]
[1730494689526,8.94321488,166.01,165.97,21.088]
[1730494689700,8.94321488,166.0,165.97,15.0629]
[1730494690414,8.94321488,165.99,165.94,8.94321488]
[1730494690707,6.023,166.03,165.91,51.2325]
[1730494690708,8.94321488,165.97,165.91,60.17571488]
[1730494691328,8.94321488,165.97,165.92,8.94321488]
[1730494691713,8.94321488,165.97,165.91,51.2325]
[1730494691714,8.94321488,165.97,165.91,8.94321488]
[1730494691924,8.94321488,165.96,165.92,21.0945]
[1730494692423,44.858584,166.02,165.92,21.0945]
[1730494692623,13.96380302,165.97,165.92,35.05830302]
[1730494692919,13.96380302,165.96,165.92,15.0675]
[1730494693303,13.96380302,165.96,165.92,18.11090274]
[1730494693722,13.96380302,165.98,165.93,13.96380302]
[1730494694106,13.96380302,165.98,165.94,6.0262]
[1730494694424,13.96380302,165.98,165.94,21.0918]
[1730494696909,13.96380302,165.98,165.94,15.0656]
[1730494704314,13.96380302,165.99,165.94,15.0656]
[1730494707334,6.0248,165.98,165.91,15.0677]
[1730494707538,13.96380302,165.96,165.91,15.0677]
[1730494708636,13.96380302,165.94,165.89,6.028]
[1730494708847,13.96380302,165.93,165.89,6.028]
[1730494709341,13.96380302,165.93,165.9,3.05093213]
[1730494709515,13.96380302,165.93,165.89,6.028]
[1730494709718,19.99050302,165.93,165.9,3.05176397]
[1730494710037,13.96380302,165.92,165.89,6.028]
[1730494710239,13.96380302,165.92,165.9,3.05174433]
[1730494710538,13.96380302,165.92,165.89,6.028]
[1730494710738,13.96380302,165.92,165.9,3.05217406]
[1730494711040,13.96380302,165.91,165.89,6.028]
[1730494711234,13.96380302,165.91,165.9,3.05211233]
[1730494712156,13.96380302,165.92,165.9,3.05211233]
[1730494712314,13.96380302,165.92,165.89,21.0982]
[1730494712830,13.96380302,165.92,165.9,3.05231236]
[1730494713020,13.96380302,165.92,165.89,21.0982]
[1730494713334,13.96380302,165.92,165.9,3.0522628]
[1730494713539,13.96380302,165.92,165.9,6.0276]
[1730494714532,8.94248653,165.92,165.86,60.19038653]
[1730494714745,8.94248653,165.92,165.87,3.05213926]
[1730494714949,8.94248653,165.92,165.88,3.05213926]